[Event "GER-ch Youth-ODJM 2022 A"]
[Site "Willingen"]
[Date "2022.06.11"]
[Round "9.17"]
[White "Brockmeyer, Tobias"]
[Black "Reimer, Philip"]
[Result "0-1"]
[ECO "E32"]
[WhiteElo "1936"]
[BlackElo "1977"]
[Annotator "TA"]
[PlyCount "118"]
[EventDate "2022.06.05"]
[EventType "swiss"]
[EventRounds "9"]
[EventCountry "GER"]
[SourceTitle "playchess.com"]
[Source "ChessBase"]
[SourceQuality "1"]
[TimeControl "40/4500+30:900+30"]

{[%evp 9,118,0,0,-24,-27,-33,-43,-22,-15,0,-9,-20,10,15,25,10,16,0,6,18,102,8,6,6,88,91,88,58,58,58,58,58,58,58,58,39,39,27,17,27,140,144,177,183,183,175,204,0,162,167,297,297,306,96,212,220,220,0,332,302,330,314,323,147,377,369,326,87,221,238,265,222,237,235,222,206,196,0,153,0,149,28,0,39,23,0,0,-8,0,-29952,-29959,-29978,-29979,-29978,-29977,-29979,-29980,-29982,-29983,-29983,-29982,-29982,-29983,-29983,-29984,-29984,-29985,-29985,-29986,-29986,-29987]} 1. d4 {[%emt 0:00:00]} Nf6 {[%emt 0:00:00]} 2. c4 {[%emt 0:00:00]} e6 {[%emt 0:00:00]} 3. Nc3 {[%emt 0:00:00]} Bb4 {[%emt 0:00:00]} 4. Qc2 {[%emt 0:00:00]} O-O {[%emt 0:00:00]} 5. Nf3 {[%emt 0:00:00]} c5 {[%emt 0:00:00]} 6. Bf4 {[%emt 0:00:00] E32: Nimzo-Indian: Classical (4 Qc2): 4...0-0.} cxd4 {[%emt 0:00:00]} 7. Nxd4 {[%emt 0:00:19]} d5 {[%emt 0:00:00]} 8. e3 {[%emt 0:13:28] Black is slightly better.} Nc6 {[%emt 0:00:00]} 9. Nxc6 {[%emt 0:03:36]} bxc6 {[%emt 0:00:00]} 10. Bd3 {[%emt 0:03:04] [#]} Re8 $146 {[%emt 0:09:15]} ({Predecessor:} 10... Qe7 11. O-O h6 12. Rfc1 Bb7 13. cxd5 cxd5 14. Qb3 Ba5 15. Nb5 Rfc8 16. Nd6 Rxc1+ 17. Rxc1 {½-½ (73) Gholami Orimi,M (2428)-Sonis,F (2483) Tornelo INT 2020}) 11. O-O {[%emt 0:03:13]} h6 {[%emt 0:03:02]} 12. a3 {[%emt 0:04:13]} Bf8 {[%emt 0:00:52]} 13. b4 {[%emt 0:02:38]} e5 {[%emt 0:12:04]} 14. Bg3 {[%emt 0:00:56]} Nh5 {[%emt 0:01:37]} (14... d4 $11 15. Ne4 a5) 15. Rfd1 {[%emt 0:07:05]} (15. cxd5 $1 $16 cxd5 16. Nxd5 $1) 15... Nxg3 $11 {[%emt 0:00:23]} 16. hxg3 {[%emt 0:03:03] With the idea Bh7+.} (16. Bh7+ Kh8 17. hxg3 g6 18. cxd5 cxd5 19. Nxd5 (19. Rxd5 Qf6 $17) 19... Bf5 $17) 16... Bb7 {[%emt 0:12:28]} (16... Bg4 $11) 17. cxd5 $16 {[%emt 0:03:33]} cxd5 {[%emt 0:00:49] [#]} 18. Be4 $1 {[%emt 0:02:45][%cal Re4d5]} Rc8 {[%emt 0:02:41]} 19. Rac1 $1 {[%emt 0:03:28]} (19. Bxd5 Bxd5 20. Qb2 Rxc3 $1 {[%mdl 512]} 21. Qxc3 Qa8 $17) 19... Qb6 {[%emt 0:32:59]} (19... d4 20. Bxb7 Rxc3 21. Qxc3 dxc3 22. Rxd8 Rxd8 23. Rxc3 $16) 20. Bxd5 {[%emt 0:04:50]} Bxd5 {[%emt 0:01:10]} 21. Rxd5 {[%emt 0:00:02]} Rc4 {[%emt 0:02:43]} 22. Qd2 {[%emt 0:04:58]} Rec8 $1 {[%emt 0:01:33]} 23. Ne2 {[%emt 0:00:57] Strongly threatening Rxc4.} (23. Rxe5 Qf6 24. Ra5 (24. f4 Qc6 $17) 24... Rxc3 25. Rxc3 Rxc3 26. Rxa7 Rb3 $17) 23... Rxc1+ {[%emt 0:00:37]} 24. Nxc1 {[%emt 0:00:02]} f6 {[%emt 0:00:18]} (24... Qa6 $11 {keeps the balance.}) 25. Nb3 {[%emt 0:03:30]} Qa6 {[%emt 0:00:02]} 26. Na5 {[%emt 0:07:44]} Qe6 {[%emt 0:00:01]} 27. Rd7 $36 {[%emt 0:02:27][%mdl 2048] Keeping Black busy.} Qf5 {[%emt 0:01:15]} 28. Nb3 $2 {[%emt 0:04:35]} ({White should play} 28. Qd5+ $18 Kh7 29. Nc6) 28... Rc2 $2 {[%emt 0:01:32]} (28... Qb1+ $1 $11 {and Black is okay.} 29. Qd1 Qxd1+ 30. Rxd1 Rc3) 29. Qd5+ $18 {[%emt 0:03:18]} Kh8 {[%emt 0:00:01]} (29... Kh7 $142) 30. f3 {[%emt 0:01:56] Rd8 is the strong threat.} (30. Rd8 $6 Rc8 $18) 30... Rc8 {[%emt 0:03:13]} 31. Qd3 $2 {[%emt 0:03:26]} (31. Rxa7 $18 {has better winning chances. Threatens to win with Nc5.} Qg6 32. Kf2) 31... Qg5 {[%emt 0:00:23]} (31... Qxd3 $16 32. Rxd3 h5) 32. Kf2 {[%emt 0:00:26]} (32. Rxa7 $6 Qxg3 33. Nd2 Qe1+ 34. Nf1 Rc1 $16) 32... f5 {[%emt 0:00:02]} 33. Rxa7 $2 {[%emt 0:01:24]} (33. Nd2 $18) 33... e4 $2 {[%emt 0:00:53][%mdl 8192]} (33... f4 $11 {and Black stays safe.} 34. gxf4 exf4) 34. fxe4 {[%emt 0:00:50]} fxe4 {[%emt 0:00:01]} 35. Qxe4 {[%emt 0:00:01]} Bd6 {[%emt 0:00:01] [#]} 36. Ra8 {[%emt 0:01:09]} (36. Nd4 $1 $18 {is the precise move to win.}) 36... Qxg3+ $2 {[%emt 0:00:06] [#]} (36... Rxa8 $2 37. Qxa8+ Kh7 38. Qf3 $18) (36... Bxg3+ $16 {was necessary.} 37. Kf3 (37. Kg1 Bb8 $11) 37... Bb8) 37. Ke2 $1 {[%emt 0:00:08]} Bb8 {[%emt 0:00:16]} 38. Qf3 {[%emt 0:00:49] Inhibits Rf8.} (38. Nd4 $18 {and the rest is easy.}) 38... Qd6 {[%emt 0:01:05]} (38... Qc7 $16 {is a better defense.} 39. Nc5 Rd8) 39. Nd4 {[%emt 0:00:28][%cal Od4c6]} Rf8 {[%emt 0:00:01]} 40. Qe4 {[%emt 0:00:36]} Qf6 {[%emt 0:01:55] [#]} 41. Qf5 {[%emt 0:00:00][%mdl 512] Prevents Qf1+.} Qd6 {[%emt 0:00:00]} 42. Qc5 {[%emt 0:00:00]} (42. Nb5 Qd8 43. Qe4 (43. Rxb8 $2 Qxb8 44. Qc5 Rc8 $19) 43... Rf2+ 44. Kxf2 Qd2+ 45. Kf3 Qd1+ 46. Kf2 Qd2+ 47. Kf3 Qd1+ 48. Kf2 Qd2+ $11) 42... Qf6 {[%emt 0:00:00]} 43. Qf5 {[%emt 0:07:00] Inhibits Qf1+. Hoping for Qxf6.} Qd6 {[%emt 0:00:00]} 44. Qe4 {[%emt 0:00:41]} ({Worse is} 44. Nb5 Qd8 45. Qe4 (45. Rxb8 $2 Qxb8 46. Qd5 Rd8 $19) 45... Qc8 $11) 44... Qf6 {[%emt 0:00:00]} 45. b5 {[%emt 0:08:28]} (45. Qb7 $16 Qf1+ 46. Kd2 Qf2+ 47. Kd3 Qf1+ 48. Kc3 Qe1+ 49. Kd3 Qd1+ 50. Kc4 Qf1+ 51. Kc3 Qe1+ 52. Kc4 Qf1+ 53. Kc3) 45... Qf2+ {[%emt 0:05:57]} 46. Kd3 {[%emt 0:00:37] And now Kc3 would win.} Qf1+ {[%emt 0:01:14]} 47. Kc3 {[%emt 0:00:47] Black must now prevent Ra6.} (47. Kd2 $5 {[%cal Rd4c6]}) 47... Rc8+ {[%emt 0:01:00]} 48. Nc6 {[%emt 0:01:13]} Qxb5 {[%emt 0:07:09] Chess con chili.} 49. Rxb8 $4 {[%emt 0:00:41][%mdl 8192]} (49. Kd2 $11) 49... Qxb8 $11 {[%emt 0:00:31] KQR-KQN. Black mates.} 50. Kd4 {[%emt 0:00:33]} Qd6+ {[%emt 0:00:40]} 51. Qd5 {[%emt 0:00:18]} Rxc6 {[%emt 0:00:25]} 52. Qxd6 {[%emt 0:00:06]} Rxd6+ {[%emt 0:00:06] KR-K3P} 53. Kc5 {[%emt 0:00:05]} Ra6 {[%emt 0:00:11]} 54. Kb4 {[%emt 0:00:03]} Re6 {[%emt 0:00:08]} 55. a4 {[%emt 0:00:05]} Rxe3 {[%emt 0:00:22]} 56. Kb5 {[%emt 0:00:10]} Re2 {[%emt 0:00:10]} 57. a5 {[%emt 0:00:04]} Rxg2 {[%emt 0:00:06]} 58. a6 {[%emt 0:00:02]} Ra2 {[%emt 0:00:05]} 59. Kb6 {[%emt 0:00:01]} g5 {[%emt 0:00:08] Black used his chance.  Weighted Error Value: White=0.48/Black=0.36} 0-1

[Event "GER-ch Youth-ODJM 2022 A"]
[Site "Willingen"]
[Date "2022.06.11"]
[Round "9.18"]
[White "Kliashtornyi, Arkadii"]
[Black "Fuchs, Florian"]
[Result "1/2-1/2"]
[ECO "D02"]
[WhiteElo "1755"]
[BlackElo "2320"]
[Annotator "TA"]
[PlyCount "68"]
[EventDate "2022.06.05"]
[EventType "swiss"]
[EventRounds "9"]
[EventCountry "GER"]
[SourceTitle "playchess.com"]
[Source "ChessBase"]
[SourceQuality "1"]
[TimeControl "40/4500+30:900+30"]

{[%evp 9,68,27,35,33,29,21,32,22,40,29,29,24,26,25,25,-30,25,32,36,-10,0,-8,38,20,13,17,22,14,21,6,1,0,18,8,74,74,74,74,74,83,77,24,24,24,47,21,47,17,60,47,47,47,47,27,27,27,27,27,44,36,36]} 1. d4 {[%emt 0:00:00]} d5 {[%emt 0:00:00]} 2. Nf3 {[%emt 0:00:00]} e6 {[%emt 0:00:00]} 3. g3 {[%emt 0:00:00]} Bd6 {[%emt 0:00:00]} 4. Bg2 {[%emt 0:00:00]} Nd7 {[%emt 0:00:00]} 5. O-O {[%emt 0:00:00]} f5 {[%emt 0:00:00]} 6. c4 {[%emt 0:00:00] D02: 1 d4 d5 2 Nf3 sidelines, including 2...Nf6 3 g3 and 2...Nf6 3 Bf4.} c6 {[%emt 0:00:00]} 7. Bf4 {[%emt 0:00:00]} Bxf4 {[%emt 0:00:00]} 8. gxf4 {[%emt 0:00:00] [#]} Ne7 $146 {[%emt 0:00:00]} ({Predecessor:} 8... Ngf6 9. Nc3 O-O 10. e3 Ne4 11. Ne5 Rf6 12. f3 Nxc3 13. bxc3 Rh6 14. Qe1 Qe8 15. Qg3 Nxe5 16. fxe5 dxc4 17. f4 Rb8 18. a4 b6 {0-1 (54) Hasman,C (2101)-Bendayan Claros,A (2167) Chess.com INT 2021}) 9. Nbd2 {[%emt 0:00:00]} O-O {[%emt 0:00:00]} 10. e3 {[%emt 0:00:00]} Rf6 {[%emt 0:00:00]} 11. Ne5 {[%emt 0:00:00]} Nxe5 {[%emt 0:00:00]} 12. fxe5 {[%emt 0:00:07]} (12. dxe5 $142 Rg6 13. Kh1) 12... Rh6 {[%emt 0:00:00]} ({Black should play} 12... Rg6) 13. f4 $11 {[%emt 0:04:33]} b6 {[%emt 0:04:04]} 14. b3 {[%emt 0:07:44]} (14. Rc1 $14) 14... Bb7 {[%emt 0:00:50]} 15. Qe2 {[%emt 0:13:12]} Ng6 {[%emt 0:06:51]} (15... c5 $11) 16. Nf3 {[%emt 0:05:10]} Nh4 {[%emt 0:01:48]} 17. Nxh4 {[%emt 0:00:50]} Qxh4 {[%emt 0:00:06]} 18. Bf3 {[%emt 0:05:39] Active counter play!} Kh8 {[%emt 0:04:25]} 19. Kh1 {[%emt 0:03:49]} Rg8 {[%emt 0:04:05]} 20. Rg1 {[%emt 0:04:59]} g5 {[%emt 0:01:35]} 21. fxg5 {[%emt 0:01:38]} Rhg6 {[%emt 0:03:29]} (21... Rxg5 $11 {remains equal.} 22. Rxg5 Qxg5) 22. Qe1 $16 {[%emt 0:05:19]} Qxe1 {[%emt 0:00:59]} 23. Raxe1 {[%emt 0:00:02]} Rxg5 {[%emt 0:00:17]} 24. Rxg5 {[%emt 0:00:02]} Rxg5 {[%emt 0:00:06]} 25. Rg1 {[%emt 0:00:07]} (25. Rc1 $16) 25... Rxg1+ $11 {[%emt 0:12:23]} 26. Kxg1 {[%emt 0:01:02][%mdl 4096] Endgame KB-KB} Kg7 {[%emt 0:00:34]} 27. Kg2 {[%emt 0:03:22]} Kg6 {[%emt 0:00:19]} 28. Kg3 {[%emt 0:00:25]} Kg5 {[%emt 0:00:06]} 29. h4+ {[%emt 0:00:45]} Kg6 {[%emt 0:00:08]} 30. Kf4 {[%emt 0:01:09]} h6 {[%emt 0:00:06]} 31. cxd5 {[%emt 0:11:20]} cxd5 {[%emt 0:00:14]} 32. Be2 {[%emt 0:00:41]} a6 {[%emt 0:15:39]} 33. b4 {[%emt 0:06:32]} b5 {[%emt 0:00:13]} 34. a3 {[%emt 0:00:11]} Bc6 {[%emt 0:00:12] Weighted Error Value: White=0.13 (very precise) /Black=0.14 (very precise)} 1/2-1/2

[Event "GER-ch Youth-ODJM 2022 A"]
[Site "Willingen"]
[Date "2022.06.11"]
[Round "9.19"]
[White "Gallasch, Robin"]
[Black "Hoffmann, Kay"]
[Result "1-0"]
[ECO "D36"]
[WhiteElo "2063"]
[BlackElo "1607"]
[Annotator "TA"]
[PlyCount "45"]
[EventDate "2022.06.05"]
[EventType "swiss"]
[EventRounds "9"]
[EventCountry "GER"]
[SourceTitle "playchess.com"]
[Source "ChessBase"]
[SourceQuality "1"]
[TimeControl "40/4500+30:900+30"]

{[%evp 22,45,53,41,44,55,100,104,125,100,159,153,161,159,158,161,573,565,589,572,608,604,762,745,759,740]} 1. d4 {[%emt 0:00:00]} d5 {[%emt 0:00:00]} 2. c4 {[%emt 0:00:00]} e6 {[%emt 0:00:00]} 3. Nc3 {[%emt 0:00:00]} c6 {[%emt 0:00:00]} 4. cxd5 {[%emt 0:00:00]} exd5 {[%emt 0:00:00]} 5. Qc2 {[%emt 0:00:00]} Nf6 {[%emt 0:00:00]} 6. Bg5 {[%emt 0:00:00]} Be7 {[%emt 0:00:00]} 7. e3 {[%emt 0:00:00]} O-O {[%emt 0:00:00]} 8. Bd3 {[%emt 0:00:00]} Nbd7 {[%emt 0:00:00]} 9. h3 {[%emt 0:00:00]} h6 {[%emt 0:01:42]} 10. Bf4 {[%emt 0:00:00]} Re8 {[%emt 0:03:44]} 11. Nf3 {[%emt 0:00:00]} Bb4 {[%emt 0:04:16]} 12. O-O {[%emt 0:00:00]} Bxc3 {[%emt 0:01:35] D36: Queen's Gambit Declined: Exchange Variation: Main line (5 Bg5 c6 6 Qc2).} 13. bxc3 {[%emt 0:00:02][%cal Bb2c3,Bc3c4,Bc4c5][%mdl 32]} Ne4 {[%emt 0:00:56]} 14. c4 {[%emt 0:10:31]} Ndf6 {[%emt 0:11:25] White is better.} 15. Ne5 {[%emt 0:06:06]} Nd6 {[%emt 0:03:47] [#]} ({Black should play} 15... Nd7) 16. c5 $146 {[%emt 0:08:38] White is more active.} ({Predecessor:} 16. Rab1 dxc4 17. Nxc4 Nxc4 18. Bxc4 b6 19. Rfc1 Bb7 20. Qg6 Nd5 21. Qg3 Nxf4 22. Qxf4 {1-0 (40) Pesotskiy,M (2245)-Skuhala,J (2163) Chess.com INT 2020}) 16... Nde4 {[%emt 0:00:18]} 17. Bh2 {[%emt 0:08:42]} Nd7 {[%emt 0:05:36]} 18. Bxe4 {[%emt 0:06:48]} Nxe5 $2 {[%emt 0:02:25] [#]} (18... dxe4 19. Nc4 Re7) (18... dxe4 19. Nc4 (19. Qxe4 Nxe5 20. dxe5 Qa5 $14) 19... Re6) 19. Bh7+ $18 {[%emt 0:00:09] White is clearly winning.} (19. dxe5 dxe4 20. Qxe4 Qa5) ({Weaker is} 19. dxe5 dxe4 20. Qxe4 Qa5 $14) 19... Kh8 {[%emt 0:00:43]} 20. Bxe5 {[%emt 0:00:09]} Rxe5 {[%emt 0:02:09]} 21. dxe5 {[%emt 0:00:13]} Qg5 {[%emt 0:00:05]} 22. f4 {[%emt 0:01:13]} Qg3 {[%emt 0:00:20]} 23. Rf3 {[%emt 0:00:08] Black got outplayed after the opening.  Weighted Error Value: White=0.03 (flawless) /Black=0.82} 1-0

[Event "GER-ch Youth-ODJM 2022 A"]
[Site "Willingen"]
[Date "2022.06.11"]
[Round "9.20"]
[White "Paeslack, Luis"]
[Black "Herter, Arne"]
[Result "1/2-1/2"]
[ECO "E92"]
[WhiteElo "1889"]
[BlackElo "1943"]
[Annotator "TA"]
[PlyCount "73"]
[EventDate "2022.06.05"]
[EventType "swiss"]
[EventRounds "9"]
[EventCountry "GER"]
[SourceTitle "playchess.com"]
[Source "ChessBase"]
[SourceQuality "1"]
[TimeControl "40/4500+30:900+30"]

{[%evp 14,73,16,28,43,15,0,0,0,0,0,-27,-20,-31,-20,-46,-45,-38,-42,-49,-36,-21,-18,-41,-41,-58,-39,-69,-3,-3,-4,-4,-6,-18,8,8,8,8,20,20,23,23,67,8,16,0,77,34,54,21,17,0,0,0,0,0,0,-227,0,0,0,0]} 1. d4 {[%emt 0:00:00]} Nf6 {[%emt 0:00:00]} 2. c4 {[%emt 0:00:00]} g6 {[%emt 0:00:00]} 3. Nc3 {[%emt 0:00:00]} Bg7 {[%emt 0:00:00]} 4. e4 {[%emt 0:00:00]} d6 {[%emt 0:00:00]} 5. Nf3 {[%emt 0:00:00]} O-O {[%emt 0:00:00]} 6. Be2 {[%emt 0:00:00]} e5 {[%emt 0:00:00]} 7. dxe5 {[%emt 0:00:00]} dxe5 {[%emt 0:00:00]} 8. O-O {[%emt 0:00:00]} ({But not} 8. Nxe5 Qxd1+ 9. Bxd1 {[#]} Nxe4 $1 10. Nxe4 Bxe5 $15) 8... Be6 {[%emt 0:05:50] E92: King's Indian: Classical: 6 Be2 e5: 7 dxe5, 7 Be3 and Petrosian System without 7...Nbd7.} 9. Qxd8 {[%emt 0:07:46]} Rxd8 {[%emt 0:00:08]} 10. Bg5 {[%emt 0:00:36]} Nbd7 {[%emt 0:10:40][%cal Bb8d7,Bd7f6,Bf6e4][%mdl 32]} 11. Nd5 {[%emt 0:20:03]} Bxd5 {[%emt 0:07:01] [#]} 12. cxd5 $146 {[%emt 0:00:28]} ({Predecessor:} 12. exd5 h6 13. Be3 b5 14. Rac1 bxc4 15. Bxc4 e4 16. Nd4 Nb6 17. Nc6 Rd7 18. Rfd1 Re8 19. b3 Nfxd5 20. Bxd5 Nxd5 {½-½ (20) Hoeppenstein,M-Schmidt,J GER email 2008}) 12... h6 $1 {[%emt 0:02:00]} 13. Bxf6 {[%emt 0:02:37]} Nxf6 {[%emt 0:02:18]} 14. Rac1 {[%emt 0:09:02]} Nxe4 {[%emt 0:11:44]} 15. Rxc7 {[%emt 0:04:52]} Nd6 {[%emt 0:05:01]} 16. Nd2 {[%emt 0:11:33]} Rac8 {[%emt 0:09:57]} 17. Rfc1 {[%emt 0:02:49]} Kf8 {[%emt 0:10:24]} 18. Bd3 {[%emt 0:06:43]} f5 {[%emt 0:08:11]} 19. f3 {[%emt 0:00:40] Prevents e4.} Bf6 {[%emt 0:00:37]} 20. Kf2 {[%emt 0:09:06]} Rxc7 {[%emt 0:01:37]} (20... Rb8 $15) 21. Rxc7 $11 {[%emt 0:00:05]} Rc8 {[%emt 0:00:15]} 22. Rxc8+ {[%emt 0:01:09]} Nxc8 {[%emt 0:00:07][%mdl 4096] Endgame KBN-KBN} 23. Nc4 {[%emt 0:02:05]} Ke7 {[%emt 0:05:14]} 24. g4 {[%emt 0:01:15]} fxg4 {[%emt 0:00:39]} 25. fxg4 {[%emt 0:00:03]} g5 {[%emt 0:00:17]} 26. Ke3 {[%emt 0:03:44]} b5 {[%emt 0:03:12]} 27. Nd2 {[%emt 0:01:17]} Nb6 {[%emt 0:02:02]} 28. Ke4 {[%emt 0:00:48] White is more active.} (28. Bxb5 $14 Nxd5+ 29. Ke4) 28... a6 {[%emt 0:00:31]} 29. Nf1 {[%emt 0:00:23]} Bg7 {[%emt 0:00:45]} (29... Na4 $11) 30. Ne3 {[%emt 0:00:46]} (30. Ng3 $5 {[%cal Rg3f5]} Nd7 31. Kf5 $14 (31. Nf5+ Kf6 $14)) 30... Na4 {[%emt 0:00:59] [#] aiming for ...Nc5+.} 31. Nf5+ {[%emt 0:01:18]} Kf6 {[%emt 0:00:08]} 32. Nxg7 {[%emt 0:00:35]} Nc5+ {[%emt 0:00:12]} 33. Ke3 {[%emt 0:00:07]} Kxg7 {[%emt 0:00:04]} 34. b4 {[%emt 0:01:13]} Nb7 {[%emt 0:01:33]} 35. a4 $2 {[%emt 0:01:03]} (35. Bc2 $11 {and White is okay.}) 35... Nd6 $2 {[%emt 0:00:46]} (35... bxa4 $19 {...a3 is the strong threat.} 36. Kd2 Nd6 37. Bxa6 e4) 36. axb5 {[%emt 0:00:14]} axb5 {[%emt 0:00:10]} 37. h3 {[%emt 0:00:27] Weighted Error Value: White=0.29 (precise) /Black=0.21 (precise)} 1/2-1/2

[Event "GER-ch Youth-ODJM 2022 A"]
[Site "Willingen"]
[Date "2022.06.11"]
[Round "9.21"]
[White "Jenner, Meikel"]
[Black "Sabirov, Rafael"]
[Result "0-1"]
[ECO "B21"]
[WhiteElo "1981"]
[BlackElo "1704"]
[Annotator "TA"]
[PlyCount "88"]
[EventDate "2022.06.05"]
[EventType "swiss"]
[EventRounds "9"]
[EventCountry "GER"]
[SourceTitle "playchess.com"]
[Source "ChessBase"]
[SourceQuality "1"]
[TimeControl "40/4500+30:900+30"]

{[%evp 15,88,0,0,-69,0,6,0,6,10,-43,-53,-54,-44,-45,-40,-46,-30,-33,-27,-81,-47,-149,-156,-179,-164,-184,-183,-180,-170,-176,-177,-201,-199,-220,-217,-218,-202,-226,-226,-218,-214,-203,-181,-249,-230,-237,-228,-245,-211,-256,-241,-254,-255,-271,-272,-282,-258,-358,-322,-414,-298,-468,-468,-475,-460,-376,-335,-511,-491,-1943,-1891,-1876,-1714,-1802,-1712]} 1. e4 {[%emt 0:00:00]} c5 {[%emt 0:00:00]} 2. d4 {[%emt 0:00:00]} cxd4 {[%emt 0:00:00]} 3. c3 {[%emt 0:00:00]} Nf6 {[%emt 0:00:00]} 4. e5 {[%emt 0:00:00]} Nd5 {[%emt 0:00:00]} 5. Qxd4 {[%emt 0:00:00]} e6 {[%emt 0:00:00]} 6. Nf3 {[%emt 0:00:00]} Nc6 {[%emt 0:00:00]} 7. Qe4 {[%emt 0:00:00]} d6 {[%emt 0:00:58]} 8. Bb5 {[%emt 0:00:00]} Bd7 {[%emt 0:01:20]} 9. O-O {[%emt 0:00:00] B22: Sicilian: 2 c3.} (9. c4 $11 Nb6 10. exd6 Bxd6 11. Bg5) 9... dxe5 {[%emt 0:06:19] [#]} (9... Nxe5 $15 10. Bxd7+ Nxd7) 10. Bxc6 $146 {[%emt 0:04:59]} ({Predecessor:} 10. c4 Nf6 11. Qh4 Nd4 12. Nxd4 exd4 13. Qxd4 Bxb5 14. Qxd8+ Rxd8 15. cxb5 Bc5 16. Nc3 h6 {0-1 (33) Pozuelo Yuen,F (1821)-Romero Alfonso,C (1883) Madrid 2010}) 10... Bxc6 {[%emt 0:00:06]} 11. Nxe5 {[%emt 0:00:37] The position is equal.} Nf6 {[%emt 0:05:46][%cal Bd5f6,Bf6e4,Be4c5,Bc5a4,Ba4b2][%mdl 32]} 12. Nxc6 {[%emt 0:03:28]} Nxe4 $15 {[%emt 0:00:14]} 13. Nxd8 {[%emt 0:00:04]} Rxd8 {[%emt 0:00:11]} ({Don't play} 13... Kxd8 14. Re1 Nf6 15. Nd2 $11) 14. Be3 {[%emt 0:01:17]} Bc5 {[%emt 0:00:50]} 15. Bxc5 {[%emt 0:00:25]} Nxc5 {[%emt 0:00:07]} 16. Na3 {[%emt 0:00:09]} Na4 {[%emt 0:03:59]} 17. Rfd1 {[%emt 0:03:10]} (17. Rab1 $11 {remains equal.}) 17... Ke7 {[%emt 0:04:14]} ({Much less strong is} 17... Nxb2 18. Rxd8+ Kxd8 19. Rb1 $14) 18. Kf1 {[%emt 0:00:30] Black converts the advantage convincingly.} (18. Nc4 $15) 18... Nxb2 $17 {[%emt 0:11:26]} 19. Rxd8 {[%emt 0:05:02]} Rxd8 {[%emt 0:00:11][%mdl 4096] Endgame KRN-KRN} ({Don't do} 19... Kxd8 20. Rb1 Na4 21. Rxb7 $16) 20. Ke2 {[%emt 0:01:27]} Na4 {[%emt 0:02:21]} 21. Rc1 {[%emt 0:01:13]} e5 {[%emt 0:03:31]} 22. Nc4 {[%emt 0:01:14]} Ke6 {[%emt 0:00:51]} 23. Ne3 {[%emt 0:01:01]} Rd6 {[%emt 0:01:07]} 24. Rc2 {[%emt 0:03:47]} f5 {[%emt 0:03:52]} 25. f3 {[%emt 0:01:00]} Rb6 {[%emt 0:02:10]} 26. Nc4 {[%emt 0:01:37]} Rc6 {[%emt 0:00:44]} 27. Kd3 {[%emt 0:00:31]} Nc5+ {[%emt 0:02:15]} 28. Ke3 {[%emt 0:00:39]} b5 {[%emt 0:07:42]} 29. Nd2 {[%emt 0:03:52]} (29. Na5 f4+ 30. Ke2) (29. Na5 $142 Rc7 30. c4) 29... Na4 $19 {[%emt 0:01:16]} 30. Kd3 {[%emt 0:01:29]} Nb6 {[%emt 0:02:20]} 31. Rb2 {[%emt 0:04:09]} a6 {[%emt 0:01:01]} 32. Rb3 {[%emt 0:05:03]} h6 {[%emt 0:03:15]} 33. g3 {[%emt 0:03:00]} Na4 {[%emt 0:02:11] [#] Strongly threatening ...Nc5+.} 34. Ra3 {[%emt 0:01:38]} Kd5 {[%emt 0:01:20]} 35. h3 {[%emt 0:02:16]} Nc5+ {[%emt 0:01:06]} 36. Ke3 {[%emt 0:00:41]} g5 {[%emt 0:02:02]} 37. Ra5 {[%emt 0:01:11]} Re6 {[%emt 0:06:12]} 38. g4 {[%emt 0:01:20]} (38. Ke2 $142) 38... f4+ {[%emt 0:01:24]} 39. Ke2 {[%emt 0:00:16]} Kc6 {[%emt 0:04:48]} 40. Nb3 {[%emt 0:03:22]} Kb6 {[%emt 0:03:11] [#] Hoping for ...Nxb3.} 41. Ra3 {[%emt 0:15:45]} (41. Nxc5 $142 Kxc5 42. Kd3) 41... e4 {[%emt 0:16:11] ...exf3+ is the strong threat. Black is clearly winning.} 42. Nd4 {[%emt 0:01:15]} (42. Nxc5 $142 Kxc5 43. Ke1) 42... exf3+ {[%emt 0:02:50]} 43. Kxf3 {[%emt 0:00:12]} Re3+ {[%emt 0:00:25]} 44. Kg2 {[%emt 0:00:14]} b4 {[%emt 0:00:44] Weighted Error Value: White=0.54/Black=0.11 (very precise)} 0-1